fUSD/lending_fUSD_20240318
["ID","MTS","AMOUNT","RATE_DAILY","PERIOD"]
[319462949,1710793749171,-164.94740714,0.00011888,2]
[319462950,1710793749189,-205.26974352,0.00011889,2]
[319462951,1710793749212,-679.2642083,0.00011889,2]
[319462952,1710793749231,-360.57329219,0.00011889,2]
[319462953,1710793749250,-409.83353002,0.0001189,2]
[319462954,1710793749269,-166.12467713,0.0001189,2]
[319462955,1710793749288,-522.4968731,0.0001189,2]
[319462956,1710793749307,-155.0,0.0001189,2]
[319462957,1710793749326,-155.0,0.00011891,2]
[319462958,1710793749346,-340.77777478,0.00011891,2]
[319462959,1710793749365,-155.0,0.00011892,2]
[319462960,1710793749385,-155.0,0.00011897,2]
[319462961,1710793749405,-616.90042825,0.00011897,2]
[319462962,1710793749425,-1585.721116,0.00011996,2]
[319462963,1710793749444,-3500.90511436,0.00011997,2]
[319462964,1710793749463,-198.80000011,0.00014,2]
[319462965,1710793749771,-155.0,0.0001487,2]
[319462966,1710793749793,-2526.1837613,0.0001575,2]
[319462967,1710793749816,-163.28832238,0.00015839,2]
[319462968,1710793749834,-155.0,0.00015841,2]
[319462969,1710793749856,-425.56,0.00015933,2]
[319462970,1710793749878,-232.19537326,0.00016,2]
[319462971,1710793749900,-559.38958846,0.00016325,2]
[319462972,1710793749920,-750.0,0.00017,3]
[319462973,1710793749939,-360.0,0.00017753,2]
[319462974,1710793749958,-250.0,0.00017763,2]
[319462975,1710793749978,-640.0,0.00017825,2]
[319462976,1710793763041,411.26695217,0.00011897,2]
[319462977,1710793766698,155.48290048,0.00011897,2]
[319462978,1710793776115,404.28,0.00017261,2]
[319462979,1710793780985,342.72246014,0.00017,2]
[319462982,1710793796949,342.72246014,0.00017,2]
[319462983,1710793797266,2642.48135697,0.0001275,2]
[319462984,1710793806909,155.0,0.00017,2]
[319462989,1710793818956,178.55840173,0.0001275,2]
[319462990,1710793822889,155.0,0.00015,2]
[319462991,1710793824677,274.224783,0.00018082,2]
[319463010,1710793831596,-151.58,0.00018183,2]
[319463012,1710793831607,-163.1,0.00018188,2]
[319463014,1710793831616,-250.0,0.00018188,2]
[319463017,1710793831627,-203.91427376,0.000182,2]
[319463019,1710793831639,-508.47198714,0.000182,2]
[319463021,1710793831651,-753.61354638,0.000182,2]
[319463023,1710793831661,-408.47,0.00018748,2]
[319463025,1710793831672,-64.56645392,0.00018748,2]
[319463027,1710793831683,-251.64354608,0.00018748,2]
[319463030,1710793831699,-274.224783,0.00018904,2]
[319463031,1710793831711,-232.19537326,0.00018999,2]
[319463034,1710793831722,-164.94740714,0.00018999,2]
[319463035,1710793831731,-446.82923052,0.00019,3]
[319463038,1710793831744,-353.17076948,0.00019,3]
[319463040,1710793831754,-265.03188493,0.00019,2]
[319463041,1710793831763,-401.79734559,0.00019178,2]
[319463044,1710793831792,-98.20265441,0.00019178,2]
[319463045,1710793831802,-404.28,0.00019525,2]
[319463046,1710793831815,-346.82,0.0001957,2]
[319463047,1710793831825,-150.0,0.0001957,2]
[319463048,1710793831835,-150.0,0.0001957,2]
[319463049,1710793831844,-300.0,0.0001957,2]
[319463050,1710793831855,-150.0,0.0001957,2]
[319463051,1710793831864,-309.93,0.0001957,2]
[319463052,1710793831874,-150.0,0.0001957,2]
[319463053,1710793831884,-150.0,0.0001957,2]
[319463054,1710793831895,-150.0,0.0001957,2]
[319463055,1710793831905,-346.82,0.0001957,2]
[319463056,1710793831914,-150.0,0.0001957,2]
[319463057,1710793831924,-150.0,0.0001957,2]
[319463058,1710793831934,-414.96,0.0001957,2]
[319463060,1710793831944,-150.0,0.0001957,2]
[319463062,1710793831954,-346.82,0.0001957,2]
[319463064,1710793831963,-300.0,0.0001957,2]
[319463066,1710793831973,-150.0,0.0001957,2]
[319463068,1710793831982,-986.55,0.0001957,2]
[319463069,1710793831992,-300.66,0.0001957,2]
[319463072,1710793832002,-414.96,0.0001957,2]
[319463074,1710793832012,-150.0,0.0001957,2]
[319463076,1710793832022,-346.82,0.0001957,2]
[319463078,1710793832031,-150.0,0.0001957,2]
[319463080,1710793832041,-150.0,0.0001957,2]
[319463082,1710793832050,-24.07734559,0.0001957,2]
[319463093,1710793832149,-444.06,0.0001957,2]
[319463097,1710793832170,-48.62265441,0.0001957,2]
[319463099,1710793832180,-150.0,0.0001957,2]
[319463101,1710793832190,-150.0,0.0001957,2]
[319463103,1710793832199,-149.17814488,0.0001957,2]
[319463106,1710793832221,-265.78185512,0.0001957,2]
[319463108,1710793832230,-150.0,0.0001957,2]
[319463110,1710793832240,-150.0,0.0001957,2]
[319463112,1710793832250,-150.0,0.0001957,2]
[319463114,1710793832261,-208.02,0.0001957,2]
[319463116,1710793832273,-150.0,0.0001957,2]
[319463118,1710793832283,-516.76,0.0001957,2]
[319463120,1710793832294,-150.0,0.0001957,2]
[319463122,1710793832303,-150.0,0.0001957,2]
[319463124,1710793832313,-150.0,0.0001957,2]
[319463125,1710793832323,-346.82,0.0001957,2]
[319463126,1710793832333,-829.87,0.0001957,2]
[319463127,1710793832343,-150.0,0.0001957,2]
[319463128,1710793832353,-445.43,0.0001957,2]
[319463129,1710793832362,-346.82,0.0001957,2]
[319463130,1710793832372,-151.73,0.0001957,2]
[319463131,1710793832382,-150.0,0.0001957,2]
[319463132,1710793832392,-150.0,0.0001957,2]
[319463133,1710793832402,-150.0,0.000196,2]
[319463134,1710793832413,-150.0,0.000196,2]
[319463135,1710793832423,-150.0,0.000196,2]
[319463136,1710793832433,-46.20351718,0.000196,2]
[319463137,1710793832457,-470.55648282,0.000196,2]
[319463138,1710793832468,-346.82,0.000196,2]
[319463139,1710793832479,-274.224783,0.00019726,2]
[319463140,1710793832488,-1479.14,0.00019726,2]
[319463141,1710793832499,-516.76,0.000198,2]
[319463142,1710793832509,-351.64873418,0.000198,2]
[319463143,1710793832928,-63.31126582,0.000198,2]
[319463144,1710793832937,-150.0,0.000198,2]
[319463145,1710793832947,-150.0,0.000198,2]
[319463146,1710793832956,-166.66666667,0.00019887,2]
[319463147,1710793832966,-2073.73513737,0.000199,2]
[319463148,1710793832979,-391.90706263,0.000199,2]
[319463149,1710793832989,-168.7243,0.000199,2]
[319463150,1710793832999,-208.4264,0.000199,2]
[319463151,1710793833009,-1843.26664964,0.000199,2]
[319463152,1710793833175,-0.07525113,0.000199,2]
[319463153,1710793833210,-2453.81754424,0.000199,2]
[319463154,1710793833222,-2897.08075499,0.000199,2]
[319463155,1710793833233,-10486.52040568,0.000199,2]
[319463156,1710793835340,178.55840173,0.0001275,2]
[319463189,1710793837833,-0.32218443,0.000199,2]
[319463192,1710793837855,-2198.77918128,0.000199,2]
[319463195,1710793837865,-1219.20341519,0.000199,2]
[319463197,1710793837874,-3956.8857,0.00019945,2]
[319463199,1710793837883,-360.0,0.00019972,2]
[319463201,1710793837893,-1479.14,0.00019974,2]
[319463203,1710793837904,-289.08,0.0001999,3]
[319463204,1710793837914,-828.76631628,0.00019998,2]
[319463206,1710793837924,-266.74125018,0.00019998,2]
[319463208,1710793837933,-534.06046812,0.00019998,2]
[319463210,1710793837942,-409.620071,0.00019998,2]
[319463211,1710793837951,-473.77091696,0.00019998,2]
[319463212,1710793837962,-155.5639618,0.00019998,2]
[319463214,1710793837972,-196.26787983,0.00019998,2]
[319463216,1710793837981,-971.97309653,0.00019998,2]
[319463218,1710793837991,-359.47675951,0.00019998,2]
[319463220,1710793838000,-258.48241037,0.00019998,2]
[319463222,1710793838009,-307.37269602,0.00019998,2]
[319463224,1710793838018,-7177.02151288,0.00019998,5]
[319463226,1710793838027,-253.00374209,0.00019998,2]
[319463228,1710793838036,-820.73271947,0.00019999,2]
[319463229,1710793838045,-118335.56241801,0.0002,2]
[319463231,1710793838055,-155.0,0.0002,2]
[319463233,1710793838064,-3018.62954628,0.0002,2]
[319463234,1710793838073,-180.0,0.00020007,2]
[319463235,1710793838082,-640.0,0.00020053,2]
[319463236,1710793838092,-150.80292757,0.0002007,2]
[319463237,1710793838101,-154.56303768,0.0002008,2]
[319463238,1710793838111,-1251.65460363,0.00020081,2]
[319463239,1710793838121,-154.56303768,0.00020112,2]
[319463240,1710793838130,-154.56106171,0.00020125,2]
[319463241,1710793838139,-150.80292757,0.00020161,2]
[319463242,1710793838148,-1000.0,0.00020165,2]
[319463243,1710793838158,-1479.14,0.00020222,2]
[319463244,1710793838167,-12685.62177135,0.00020265,2]
[319463245,1710793838177,-1219.20341519,0.00020265,2]
[319463246,1710793838187,-3000.0,0.0002029,2]
[319463247,1710793838196,-1000.0,0.00020292,2]
[319463248,1710793838205,-2500.0,0.00020292,2]
[319463249,1710793838215,-346.82,0.00020391,2]
[319463250,1710793838224,-829.72,0.00020391,2]
[319463251,1710793838234,-150.0,0.00020391,2]
[319463252,1710793838243,-516.76,0.00020391,2]
[319463253,1710793838252,-150.0,0.00020391,2]
[319463254,1710793838262,-346.82,0.00020391,2]
[319463255,1710793838271,-150.0,0.00020391,2]
[319463256,1710793838280,-516.76,0.00020391,2]
[319463257,1710793838289,-414.96,0.00020391,2]
[319463258,1710793838298,-150.0,0.00020391,2]
[319463259,1710793838308,-150.0,0.00020391,2]
[319463260,1710793838317,-346.82,0.00020391,2]
[319463261,1710793838326,-150.0,0.00020391,2]
[319463262,1710793838335,-516.76,0.00020391,2]
[319463263,1710793838344,-414.96,0.00020391,2]
[319463264,1710793838354,-278.96,0.00020391,2]
[319463265,1710793838363,-346.82,0.00020391,2]
[319463266,1710793838372,-150.0,0.00020391,2]
[319463267,1710793838381,-150.0,0.00020391,2]
[319463268,1710793838390,-516.76,0.00020391,2]
[319463269,1710793838398,-414.96,0.00020391,2]
[319463270,1710793838407,-150.0,0.00020391,2]
[319463271,1710793838416,-150.0,0.00020391,2]
[319463272,1710793838425,-687.48,0.00020391,2]
[319463273,1710793838435,-516.76,0.00020391,2]
[319463274,1710793838444,-414.96,0.00020391,2]
[319463275,1710793838452,-150.0,0.00020391,2]
[319463276,1710793838462,-150.0,0.00020391,2]
[319463277,1710793838471,-516.76,0.00020391,2]
[319463278,1710793838480,-414.96,0.00020391,2]
[319463279,1710793838489,-150.0,0.00020391,2]
[319463280,1710793838498,-303.23,0.00020391,2]
[319463281,1710793838507,-414.96,0.00020391,2]
[319463282,1710793838516,-516.76,0.00020391,2]
[319463283,1710793838525,-150.0,0.00020391,2]
[319463284,1710793838534,-516.76,0.00020391,2]
[319463285,1710793838543,-414.96,0.00020391,2]
[319463286,1710793838551,-414.96,0.00020391,2]
[319463287,1710793838560,-516.76,0.00020391,2]
[319463288,1710793838570,-516.76,0.00020391,2]
[319463289,1710793838579,-414.96,0.00020391,2]
[319463290,1710793838587,-516.76,0.00020391,2]
[319463291,1710793838596,-409.03,0.00020391,2]
[319463292,1710793838605,-330.82,0.00020391,2]
[319463293,1710793838614,-414.85,0.00020391,2]
[319463294,1710793838623,-516.61,0.00020391,2]
[319463295,1710793838632,-532.2026171,0.0002041,2]
[319463296,1710793838641,-155.0,0.00020411,2]
[319463297,1710793838650,-150.9722901,0.00020422,2]
[319463298,1710793838659,-150.9722901,0.00020426,2]
[319463299,1710793838668,-153.80188616,0.00020443,2]
[319463300,1710793838677,-1479.14,0.0002047,2]
[319463301,1710793838686,-172.82675035,0.0002049,2]
[319463302,1710793838695,-160.25297431,0.0002049,2]
[319463303,1710793838704,-2163.23429142,0.0002049,2]
[319463304,1710793838715,-780.45594428,0.0002049,2]
[319463305,1710793838723,-155.0,0.0002049,2]
[319463306,1710793838732,-5220.2225818,0.0002049,2]
[319463307,1710793838741,-3131.66464069,0.0002049,2]
[319463308,1710793838750,-204.88114341,0.0002049,2]
[319463309,1710793838759,-444.77852355,0.0002049,2]
[319463310,1710793838768,-11430.01641904,0.0002049,2]
[319463311,1710793838777,-358.02912916,0.0002049,2]
[319463312,1710793838786,-155.06679,0.0002049,2]
[319463313,1710793838795,-451.10430523,0.0002049,2]
[319463314,1710793838805,-3357.84626022,0.0002049,2]
[319463315,1710793838815,-1052.96765413,0.0002049,2]
[319463316,1710793838828,-7834.71179086,0.0002049,2]
[319463317,1710793838837,-528.44889981,0.0002049,2]
[319463318,1710793838846,-3060.85523185,0.0002049,2]
[319463319,1710793838856,-1455.55124494,0.0002049,2]
[319463320,1710793838865,-159.81902727,0.0002049,2]
[319463321,1710793838874,-254.57891934,0.0002049,2]
[319463322,1710793838883,-294.3504502,0.00020491,2]
[319463323,1710793838892,-5214.3676978,0.00020491,2]
[319463324,1710793838904,-140870.9432594,0.0002051,2]
[319463325,1710793838914,-155.14523781,0.0002051,2]
[319463326,1710793838923,-1000.498499,0.0002051,2]
[319463327,1710793838932,-150.0,0.0002051,2]
[319463328,1710793838941,-1580.44151,0.0002051,2]
[319463329,1710793838950,-152.86750514,0.0002051,2]
[319463330,1710793838959,-1228.0,0.00020511,2]
[319463331,1710793838967,-457.0,0.00020511,2]
[319463332,1710793838977,-536.0,0.00020511,2]
[319463333,1710793838985,-1044.0,0.00020511,2]
[319463334,1710793838994,-150.80292757,0.00020522,2]
[319463335,1710793839003,-274.224783,0.00020548,2]
[319463336,1710793839014,-435.0,0.00020548,2]
[319463337,1710793839023,-12685.62177135,0.0002063,2]
[319463338,1710793839037,-1219.20341519,0.0002063,2]
[319463339,1710793839047,-1479.14,0.00020718,2]
[319463340,1710793839056,-408.47,0.00020729,2]
[319463341,1710793839065,-408.47,0.00020729,2]
[319463342,1710793839074,-922.57,0.00020729,2]
[319463343,1710793839084,-408.47,0.00020729,2]
[319463344,1710793839094,-816.82,0.00020729,2]
[319463345,1710793839103,-200.0,0.00020733,2]
[319463346,1710793839113,-200.0,0.00020733,2]
[319463347,1710793839122,-200.0,0.00020733,2]
[319463348,1710793839132,-3113.17605562,0.00020738,2]
[319463349,1710793839141,-352.4970813,0.00020788,2]
[319463350,1710793839150,-105860.67064139,0.0002079,2]
[319463351,1710793839161,-158.82495527,0.00020798,2]
[319463352,1710793839170,-800.0,0.00020851,2]
[319463353,1710793839179,-200.0,0.00020881,2]
[319463354,1710793839189,-14633.91,0.00020885,2]
[319463355,1710793839198,-423.04730073,0.00020888,2]
[319463356,1710793839207,-213.79975813,0.00020896,2]
[319463357,1710793839218,-2500.0,0.00020896,2]
[319463358,1710793839227,-1246.7636923,0.00020896,2]
[319463359,1710793839237,-1754.23693487,0.00020896,2]
[319463360,1710793839246,-369.50214163,0.00020896,2]
[319463361,1710793839255,-154.56303768,0.00020896,2]
[319463362,1710793839265,-545.80958377,0.00020897,2]
[319463363,1710793839275,-23832.80775612,0.00020897,2]
[319463364,1710793839284,-9105.90114847,0.00020898,2]
[319463365,1710793839293,-1460.52,0.00020898,2]
[319463366,1710793839302,-155.000001,0.00020898,2]
[319463367,1710793839316,-195.7408226,0.00020898,2]
[319463368,1710793839326,-222.25196037,0.00020898,2]
[319463369,1710793839337,-155.17635917,0.00020898,2]
[319463370,1710793839347,-155.0,0.00020898,2]
[319463372,1710793839359,-118824.73435316,0.00020898,2]
[319463373,1710793839371,-155.27976291,0.00020898,2]
[319463374,1710793839382,-163.04269786,0.00020898,2]
[319463375,1710793839393,-266.03607475,0.00020898,2]
[319463376,1710793839404,-182.79959393,0.00020898,2]
[319463377,1710793839415,-271.46694238,0.00020898,2]
[319463378,1710793839425,-766.83039155,0.00020898,2]
[319463379,1710793839438,-1060.19175182,0.00020898,2]
[319463381,1710793839449,-1000.0,0.000209,2]
[319463383,1710793839461,-150.39424812,0.000209,2]
[319463384,1710793839472,-1008.0,0.000209,2]
[319463385,1710793839483,-1000.0,0.000209,2]
[319463386,1710793839494,-6384.09460645,0.000209,2]
[319463387,1710793839505,-12371.69132285,0.000209,2]
[319463388,1710793839515,-1479.14,0.00020966,2]
[319463389,1710793839525,-800.0,0.00020969,2]
[319463390,1710793839536,-150.0,0.00020979,2]
[319463391,1710793839546,-48766.2536658,0.0002099,2]
[319463392,1710793839556,-12685.62177135,0.00020996,2]
[319463393,1710793839566,-1219.20341519,0.00020996,2]
[319463394,1710793839576,-11309.50788119,0.00020998,2]
[319463395,1710793839845,-155.23906023,0.00020998,2]
[319463396,1710793839858,-175.9780365,0.00020998,2]
[319463397,1710793839870,-253.23429407,0.00020998,2]
[319463398,1710793839882,-155.0,0.00020998,2]
[319463399,1710793839892,-155.23516414,0.00020998,2]
[319463400,1710793839906,-155.5408562,0.00020998,2]
[319463401,1710793839919,-1883.30750935,0.00020998,2]
[319463402,1710793839931,-1627.35148327,0.00020999,2]
[319463403,1710793839941,-3178.91299457,0.00020999,2]
[319463404,1710793839950,-303.20222811,0.00020999,2]
[319463405,1710793839961,-416.19134374,0.00020999,2]
[319463406,1710793839970,-891.0,0.00021,2]
[319463407,1710793839979,-653565.78154886,0.00021,2]
[319463408,1710793839989,-854.631359,0.00021,2]
[319463409,1710793839998,-1352.0,0.00021,2]
[319463410,1710793840007,-850.0,0.00021,3]
[319463411,1710793840017,-2000.0,0.00021,2]
[319463412,1710793840027,-200.0,0.00021,2]
[319463413,1710793840037,-2000.0,0.00021,2]
[319463414,1710793840046,-200.0,0.00021,2]
[319463415,1710793840056,-200.0,0.00021,2]
[319463416,1710793840066,-7500.0,0.00021,2]
[319463417,1710793840075,-180.66650419,0.00021,2]
[319463418,1710793840085,-1000.0,0.00021,2]
[319463419,1710793840094,-1315.32568994,0.00021,3]
[319463420,1710793840104,-200.0,0.00021,2]
[319463421,1710793840114,-163.70130469,0.00021,2]
[319463422,1710793840123,-1574.48694,0.00021,2]
[319463423,1710793840132,-156.13813024,0.00021006,2]
[319463424,1710793840141,-800.0,0.00021011,2]
[319463425,1710793840151,-150.0,0.00021011,2]
[319463426,1710793840160,-1136.0,0.00021011,2]
[319463427,1710793840169,-357.0,0.00021011,2]
[319463428,1710793840179,-3069.0,0.00021011,2]
[319463429,1710793840188,-1459.0,0.00021011,2]
[319463430,1710793840197,-2419.0,0.00021011,2]
[319463431,1710793840206,-150.0,0.00021011,2]
[319463432,1710793840217,-213.0,0.00021011,2]
[319463433,1710793840226,-1623.0,0.00021011,2]
[319463434,1710793840235,-4762.0,0.00021011,2]
[319463435,1710793840244,-42866.0,0.00021011,2]
[319463436,1710793840254,-1629.826,0.00021011,2]
[319463437,1710793840263,-959.0,0.00021011,2]
[319463438,1710793840272,-1378.0,0.00021011,2]
[319463439,1710793840281,-2558.0,0.00021011,2]
[319463440,1710793840291,-2445.0,0.00021011,2]
[319463441,1710793840300,-200.0,0.00021028,2]
[319463442,1710793840310,-200.0,0.00021028,2]
[319463443,1710793840319,-8335.99286863,0.00021031,2]
[319463444,1710793840329,-164.0,0.0002107,15]
[319463445,1710793840349,-164.0,0.0002108,15]
[319463446,1710793840360,-154.56303768,0.00021085,2]
[319463447,1710793840369,-800.0,0.00021087,2]
[319463448,1710793840379,-164.0,0.0002109,15]
[319463449,1710793840388,-2311.58,0.00021096,2]
[319463450,1710793840398,-168.32211851,0.00021099,2]
[319463451,1710793840407,-425788.09983453,0.000211,2]
[319463452,1710793840426,-761580.02519776,0.000211,2]
[319463453,1710793840448,-3170.28692718,0.000211,2]
[319463454,1710793840461,-1993.23428,0.000211,2]
[319463455,1710793840485,-1218.11462295,0.000211,2]
[319463456,1710793840497,-18848.92727327,0.000211,2]
[319463457,1710793840508,-7005.17357442,0.000211,2]
[319463458,1710793840524,-366.83172432,0.000211,2]
[319463459,1710793840998,-855.1931043,0.000211,2]
[319463460,1710793841048,-534.84550696,0.000211,2]
[319463461,1710793841060,-1398.7391578,0.000211,2]
[319463462,1710793841072,-805.41837816,0.000211,2]
[319463463,1710793841201,-875.71616645,0.000211,2]
[319463464,1710793841219,-500.0,0.000211,2]
[319463490,1710793842825,-1250.0,0.00020511,2]
[319463491,1710793842837,-278.0,0.00020511,2]
[319463492,1710793842846,-1574.48694,0.00021,2]
[319463493,1710793842856,-151.0,0.00021,2]
[319463494,1710793842867,-424571.77385204,0.000211,2]
[319463495,1710793842880,-94584.33879522,0.000211,2]
[319463496,1710793842931,-10486.21815682,0.000211,2]
[319463497,1710793842942,-223721.3704936,0.000211,2]
[319463498,1710793842955,-18018.0,0.000211,2]
[319463499,1710793842972,-3166.3500005,0.000211,2]
[319463508,1710793845798,-150.0,0.000201,2]
[319463509,1710793845807,-516.76,0.000201,2]
[319463510,1710793845817,-150.0,0.000201,2]
[319463511,1710793845829,-346.82,0.000201,2]
[319463512,1710793845838,-150.0,0.000201,2]
[319463513,1710793845848,-232.19537326,0.0002051,2]
[319463514,1710793845857,-52040.62462675,0.000211,2]
[319463515,1710793845894,-178.17283862,0.000201,2]
[319463516,1710793845962,-178.30716138,0.000201,2]
[319463517,1710793845972,-417705.19450604,0.000211,2]
[319463518,1710793845986,-326634.18972905,0.000211,2]
[319463519,1710793845999,-37721.22176843,0.000211,2]
[319463520,1710793846047,-1198.22369301,0.000211,2]
[319463521,1710793850944,178.55840173,0.0001275,2]
[319463522,1710793870953,178.55840173,0.0001275,2]
[319463523,1710793884951,178.55840173,0.0001275,2]
[319463524,1710793901197,178.55840173,0.0001275,2]
[319463525,1710793918962,178.55840173,0.0001275,2]
[319463547,1710794736219,-204.93453493,0.00012748,2]
[319463548,1710794736240,-484.92463191,0.00012749,2]
[319463549,1710794736260,-178.55840173,0.0001275,2]
[319463550,1710794736281,-1462.37666115,0.0001275,2]
[319463551,1710794736302,-962.02754223,0.0001399,2]
[319463552,1710794736321,-154.76,0.00015213,2]
[319463553,1710794736341,-95.21094446,0.000156,2]
[319463554,1710794955097,-3000.0,0.00015,2]
[319463555,1710794955116,-300.0,0.00015599,2]
[319463556,1710794955137,-150.0,0.00015599,2]
[319463557,1710794955159,-3132.78905554,0.000156,2]
[319463558,1710794955179,-285.14508687,0.000156,2]
[319463559,1710794955199,-321.72947893,0.000156,2]
[319463560,1710794955219,-150.0,0.00015808,2]
[319463561,1710794955242,-1785.53618659,0.00015822,2]
[319463562,1710794955261,-232.19537326,0.00016,2]
[319463563,1710794955281,-428.96,0.0001685,2]
[319463564,1710794955300,-750.0,0.00017,3]
[319463565,1710794955320,-210.0,0.00017159,2]
[319463566,1710794955342,-173.76,0.00018188,2]
[319463567,1710794955361,-2519.9,0.00018188,2]
[319463568,1710794955383,-746.8255392,0.00018188,2]
[319463569,1710794956110,-1253.1744608,0.00018188,2]
[319463570,1710794956131,-150.0,0.00018188,2]
[319463571,1710794956156,-158.58,0.00018188,2]
[319463572,1710794956176,-220.86,0.00018188,10]
[319463573,1710794956196,-470.98,0.00018188,2]
[319463574,1710794956242,-614.49,0.00018875,2]
[319463575,1710794956262,-250.0,0.00018885,2]
[319463576,1710794956281,-885.77,0.00018899,2]
[319463577,1710794956301,-2101.87683622,0.00018911,2]
[319463582,1710795031899,-158.87495563,0.00018811,2]
[319463583,1710795031908,-2062.52316378,0.00018911,2]
[319463584,1710795031918,-451.10226463,0.00018911,2]
[319463585,1710795031928,-250.0,0.00018915,2]
[319463586,1710795031937,-200.0,0.00018917,2]
[319463587,1710795031947,-3191.22,0.00018942,2]
[319463588,1710795031957,-167.93,0.00018943,2]
[319463589,1710795031967,-200.0,0.00018979,2]
[319463590,1710795031976,-800.0,0.00019,3]
[319463591,1710795031986,-849.43,0.00019001,2]
[319463592,1710795031996,-784.0,0.00019012,2]
[319463593,1710795032005,-216.0,0.00019033,2]
[319463594,1710795032015,-162.07,0.0001904,2]
[319463595,1710795032025,-158.87495563,0.00019054,2]
[319463596,1710795032034,-428.96,0.00019114,2]
[319463597,1710795032044,-407.77,0.00019152,2]
[319463598,1710795032053,-500.0,0.00019178,2]
[319463599,1710795032062,-22899.32,0.00019204,2]
[319463600,1710795032072,-341.52,0.00019228,2]
[319463601,1710795032081,-158.87495563,0.00019297,2]
[319463602,1710795032090,-341.52,0.00019299,2]
[319463603,1710795032099,-166.55,0.00019356,2]
[319463604,1710795032108,-341.52,0.0001937,2]
[319463605,1710795032118,-341.52,0.00019441,2]
[319463606,1710795032127,-164.534869,0.00019452,2]
[319463607,1710795032140,-341.52,0.00019512,2]
[319463609,1710795032149,-153.05383812,0.00019515,2]
[319463611,1710795032158,-162.07,0.00019536,2]
[319463612,1710795032167,-158.87495563,0.0001954,2]
[319463613,1710795032178,-341.52,0.00019583,2]
[319463614,1710795032187,-300.0,0.00019633,2]
[319463615,1710795032196,-150.0,0.00019633,2]
[319463617,1710795032206,-151.26,0.00019633,2]
[319463619,1710795032216,-300.0,0.00019633,2]
[319463621,1710795032225,-150.0,0.00019633,2]
[319463622,1710795032234,-341.52,0.00019653,2]
[319463623,1710795032244,-341.52,0.00019724,2]
[319463624,1710795032255,-369.78,0.00019726,2]
[319463626,1710795032264,-158.87495563,0.00019783,2]
[319463628,1710795032273,-300.0,0.00019794,2]
[319463630,1710795032283,-341.52,0.00019795,2]
[319463632,1710795032292,-343.33148155,0.00019818,2]
[319463634,1710795032301,-166.44360795,0.00019857,2]
[319463636,1710795032311,-341.52,0.00019866,2]
[319463638,1710795032321,-150.38,0.00019895,2]
[319463640,1710795032330,-357.5687,0.000199,2]
[319463642,1710795032340,-1000.0,0.000199,2]
[319463644,1710795032348,-165.06554566,0.00019929,2]
[319463646,1710795032358,-341.52,0.00019937,2]
[319463648,1710795032367,-220.86,0.0001997,10]
[319463650,1710795032376,-369.78,0.00019974,2]
[319463652,1710795032387,-1000.0,0.0002,2]
[319463654,1710795032397,-155.0,0.0002,2]
[319463656,1710795032406,-180.0,0.00020007,2]
[319463658,1710795032416,-341.52,0.00020008,2]
[319463660,1710795032425,-158.87495563,0.00020026,2]
[319463661,1710795032435,-162.07,0.00020032,2]
[319463662,1710795032643,-346.6368228,0.00020043,2]
[319463663,1710795032660,-341.52,0.00020079,2]
[319463664,1710795032670,-296.37642989,0.00020099,2]
[319463665,1710795032679,-250.0,0.000201,2]
[319463666,1710795032689,-150.0,0.000201,2]